bitfinex-derivatives/quotes_SOLF0:USTF0_20250705
["timestamp","ask_amount","ask_price","bid_price","bid_amount"]
[1751721662058,6.7462,148.2,148.18,2.96669491]
[1751721662560,6.7457,148.21,148.18,9.71329491]
[1751721663464,6.7457,148.21,148.19,2.96669491]
[1751721667566,6.746,148.2,148.19,2.96669491]
[1751721668965,6.746,148.2,148.18,6.7466]
[1751721669263,6.746,148.2,148.19,2.96669491]
[1751721669667,6.7457,148.21,148.19,2.96669491]
[1751721671868,6.7457,148.21,148.18,6.7466]
[1751721672067,6.7457,148.21,148.19,2.96669491]
[1751721672362,6.746,148.2,148.19,2.96669491]
[1751721672561,2.96669491,148.23,148.18,2.96669491]
[1751721672764,2.96669491,148.22,148.18,2.96669491]
[1751721673569,6.7464,148.2,148.18,2.96669491]
[1751721673871,2.96669491,148.22,148.17,2.96669491]
[1751721674072,6.7467,148.19,148.17,2.96669491]
[1751721674372,6.7467,148.19,148.18,2.96669491]
[1751721676171,6.7467,148.19,148.17,6.7473]
[1751721676470,6.7467,148.19,148.18,2.96669491]
[1751721683770,6.7462,148.2,148.18,2.96669491]
[1751721683971,5.32469491,148.23,148.18,2.96669491]
[1751721684172,10.23135068,148.22,148.18,2.96669491]
[1751721684367,5.63920256,148.21,148.18,2.96669491]
[1751721684672,6.746,148.2,148.18,9.71339491]
[1751721685475,6.746,148.2,148.18,2.96669491]
[1751721688276,6.746,148.2,148.19,2.96669491]
[1751721688774,6.746,148.2,148.18,2.96669491]
[1751721688974,6.746,148.2,148.19,2.96669491]
[1751721689378,12.39537972,148.2,148.19,2.96669491]
[1751721689572,6.746,148.2,148.19,2.96669491]
[1751721692381,6.7465,148.19,148.18,2.96669491]
[1751721694876,2.96669491,148.22,148.16,45.6]
[1751721695082,2.96566433,148.19,148.16,45.6]
[1751721695275,2.96638496,148.19,148.16,45.6]
[1751721695480,6.7472,148.18,148.16,45.6]
[1751721697077,6.7472,148.18,148.16,48.56638496]
[1751721700685,6.7473,148.17,148.16,48.56638496]
[1751721703383,6.7473,148.17,148.16,45.6]
[1751721703784,6.7473,148.17,148.16,48.56638496]
[1751721705890,6.7471,148.18,148.16,48.56638496]
[1751721709088,6.7471,148.18,148.16,55.31418496]
[1751721719996,6.7471,148.18,148.17,2.96638496]
[1751721721097,6.7471,148.18,148.16,52.3478]
[1751721721295,6.7471,148.18,148.17,2.96638496]
[1751721726906,6.7466,148.19,148.17,2.96638496]
[1751721727209,5.21338496,148.22,148.18,2.96638496]
[1751721727409,6.7462,148.2,148.18,2.96638496]
[1751721728507,6.7462,148.2,148.18,9.71298496]
[1751721729007,6.7462,148.2,148.19,2.96638496]
[1751721731508,6.7456,148.21,148.19,9.71278496]
[1751721731711,2.96638496,148.24,148.2,2.96638496]
[1751721731902,17.37693048,148.23,148.2,2.96638496]
[1751721732098,10.20749011,148.22,148.2,2.96638496]
[1751721732304,2.96638496,148.24,148.2,2.96638496]
[1751721732503,17.37623739,148.23,148.2,2.96638496]
[1751721732709,10.20697747,148.22,148.2,2.96638496]
[1751721732910,2.96638496,148.24,148.2,2.96638496]
[1751721733211,17.38809983,148.23,148.2,2.96638496]
[1751721733408,10.21883991,148.22,148.2,2.96638496]
[1751721733609,6.7455,148.21,148.2,2.96638496]
[1751721739211,6.7453,148.22,148.2,2.96638496]
[1751721739517,6.7453,148.22,148.21,2.96638496]
[1751721739713,16.97297169,148.22,148.21,2.96638496]
[1751721741213,10.22767169,148.22,148.21,2.96638496]
[1751721742215,10.24720661,148.22,148.21,2.96638496]
[1751721742617,16.99230661,148.22,148.21,2.96638496]
[1751721746413,5.63522364,148.22,148.21,2.96638496]
[1751721746619,6.7448,148.23,148.21,2.96638496]
[1751721751321,6.7448,148.23,148.22,2.96638496]
[1751721751510,12.38756897,148.23,148.22,2.96638496]
[1751721753023,6.7448,148.23,148.22,2.96638496]
[1751721754025,12.3989578,148.23,148.22,2.96638496]
[1751721756123,12.3989578,148.23,148.21,2.96638496]
[1751721756323,6.7448,148.23,148.21,2.96638496]
[1751721758420,6.7443,148.24,148.21,9.71178496]
[1751721758624,6.7443,148.24,148.22,2.96638496]
[1751721758824,2.2602,148.26,148.22,2.96638496]
[1751721759124,6.7445,148.24,148.22,2.96638496]
[1751721762425,6.7445,148.24,148.23,2.96638496]
[1751721765831,6.7445,148.24,148.22,2.96638496]
[1751721766733,6.7446,148.23,148.2,6.7458]
[1751721766931,6.7446,148.23,148.22,2.96638496]
[1751721769136,6.7446,148.23,148.21,2.96638496]
[1751721775131,6.7446,148.23,148.2,6.7458]
[1751721775132,6.7446,148.23,148.22,2.96638496]
[1751721777337,6.7446,148.23,148.21,2.96638496]
[1751721779239,6.7447,148.23,148.21,9.71168496]
[1751721782543,6.7447,148.23,148.22,2.96638496]
[1751721784347,6.7447,148.23,148.21,6.7453]
[1751721784647,6.7447,148.23,148.22,2.96638496]
[1751721785147,4.6607,148.26,148.22,9.71148496]
[1751721785344,17.5449469,148.25,148.24,2.96282929]
[1751721785940,24.2889469,148.25,148.23,2.96294156]
[1751721786149,5.66078147,148.24,148.23,2.96294156]
[1751721786448,6.744,148.25,148.23,2.96294156]
[1751721789151,5.66173329,148.24,148.23,2.96294156]
[1751721792152,10.31635637,148.24,148.23,2.96294156]
[1751721802962,17.07284905,148.24,148.22,6.7446]
[1751721803168,6.7441,148.24,148.23,2.96294156]
[1751721803361,17.08381598,148.24,148.2,45.54]
[1751721803566,4.66755454,148.23,148.2,48.50294156]
[1751721803768,2.96294156,148.24,148.2,48.50294156]
[1751721803970,17.59154973,148.23,148.2,48.50294156]
[1751721804162,5.67251222,148.22,148.2,48.50294156]
[1751721804361,6.7453,148.22,148.2,48.50294156]
[1751721805766,6.7453,148.22,148.21,2.96294156]
[1751721805962,5.67201483,148.22,148.21,2.96294156]
[1751721806267,6.7448,148.23,148.21,2.96294156]
[1751721811370,6.7448,148.23,148.22,2.96294156]
[1751721811667,17.04004753,148.23,148.22,2.96294156]
[1751721812873,17.04017185,148.23,148.22,2.96294156]
[1751721813074,6.7451,148.22,148.21,2.96294156]
[1751721813672,6.7448,148.23,148.21,2.96294156]
[1751721817967,6.7448,148.23,148.22,2.96294156]
[1751721818174,12.39004203,148.23,148.22,2.96294156]
[1751721820876,12.39004203,148.23,148.21,2.96294156]
[1751721821075,6.7448,148.23,148.21,2.96294156]
[1751721826684,6.7448,148.23,148.22,2.96294156]
[1751721826979,12.39014477,148.23,148.22,2.96294156]
[1751721827581,12.39014477,148.23,148.21,2.96294156]
[1751721827782,6.7448,148.23,148.21,2.96294156]
[1751721836192,6.7448,148.23,148.2,52.2859]
[1751721836490,6.7448,148.23,148.21,2.96294156]
[1751721843391,12.39232939,148.22,148.21,2.96294156]
[1751721846197,6.7451,148.22,148.21,2.96294156]
[1751721849301,6.7448,148.23,148.21,2.96294156]
[1751721850201,6.7448,148.23,148.21,2.96378834]
[1751721859605,7.73838834,148.26,148.21,2.96378834]
[1751721859810,6.7451,148.22,148.2,9.70968834]
[1751721860310,6.7451,148.22,148.21,2.96403649]
[1751721860509,6.31575487,148.27,148.21,202.48323392]
[1751721860711,2.96323392,148.31,148.26,2.96323392]
[1751721860916,26.73583342,148.3,148.25,2.96204005]
[1751721861117,20.42110942,148.29,148.25,2.96204005]
[1751721861411,20.42110942,148.29,148.24,45.5]
[1751721861412,24.20176937,148.28,148.24,55.20584005]
[1751721861608,10.26760901,148.27,148.24,55.20584005]
[1751721861802,6.7427,148.28,148.25,2.96204005]
[1751721862112,4.6195641,148.27,148.25,2.96204005]
[1751721862312,6.7427,148.28,148.25,2.96204005]
[1751721862513,6.7427,148.28,148.25,9.70574005]
[1751721864720,6.7427,148.28,148.26,2.96204005]
[1751721870527,6.7427,148.28,148.26,9.70524005]
[1751721873920,6.7419,148.29,148.27,9.70474005]
[1751721874120,6.7419,148.29,148.28,2.96204005]
[1751721874326,17.05955035,148.29,148.28,2.96204005]
[1751721874725,6.7419,148.29,148.28,2.96204005]
[1751721876325,56.37649677,148.33,148.28,2.96204005]
[1751721876526,17.54460553,148.32,148.3,2.96204005]
[1751721876720,10.31362062,148.31,148.3,2.96204005]
[1751721877325,50.0821,148.33,148.3,2.96204005]
[1751721877522,50.0821,148.33,148.32,2.96204005]
[1751721877726,22.10846238,148.33,148.32,2.96204005]
[1751721878033,14.87993156,148.33,148.32,2.96204005]
[1751721878523,21.62003156,148.33,148.32,2.96204005]
[1751721879026,21.62003156,148.33,148.31,2.96204005]
[1751721879229,11.3222,148.33,148.31,2.96204005]
[1751721883432,6.7405,148.32,148.31,2.96204005]
[1751721886137,11.3225,148.33,148.31,2.96204005]
[1751721886434,11.3225,148.33,148.32,2.96204005]
[1751721887342,6.7398,148.34,148.32,2.96204005]
[1751721887533,2.2429,148.37,148.33,2.96204005]
[1751721887729,10.32509995,148.36,148.34,2.96204005]
[1751721888029,2.2429,148.37,148.34,2.96204005]
[1751721888334,10.33059036,148.36,148.34,2.96204005]
[1751721888535,6.7391,148.35,148.34,2.96204005]
[1751721889238,6.29439677,148.39,148.34,2.96204005]
[1751721889426,5.67020031,148.38,148.3,2.3725]
[1751721889631,5.67020031,148.37,148.36,6.7387]
[1751721889831,12.94540765,148.42,148.36,2.96204005]
[1751721889832,4.5652,148.42,148.36,2.96204005]
[1751721890138,10.32201518,148.41,148.34,45.92]
[1751721890333,4.5652,148.42,148.34,45.92]
[1751721890334,5.66883105,148.4,148.34,45.92]
[1751721890532,4.5652,148.42,148.34,45.92]
[1751721890834,5.66589736,148.41,148.38,6.7375]
[1751721891032,6.7363,148.42,148.4,2.96204005]
[1751721891236,2.2763,148.44,148.41,2.96204005]
[1751721891433,12.39833832,148.43,148.41,2.96204005]
[1751721891632,5.66273832,148.42,148.41,2.96204005]
[1751721891833,5.66273832,148.42,148.4,2.96204005]
[1751721892137,6.7362,148.42,148.4,2.96204005]
[1751721892642,6.7364,148.41,148.4,2.96204005]
[1751721896938,6.737,148.4,148.37,6.7381]
[1751721897140,6.737,148.4,148.39,2.96204005]
[1751721897332,2.2763,148.44,148.39,2.96204005]
[1751721897532,2.96204005,148.43,148.39,2.96204005]
[1751721897938,5.23834005,148.44,148.4,2.96204005]
[1751721898739,6.7369,148.41,148.4,2.96204005]
[1751721902543,6.737,148.4,148.37,6.738]
[1751721902842,6.737,148.4,148.39,2.96204005]
[1751721904237,6.7365,148.41,148.39,9.69934005]
[1751721904439,6.7365,148.41,148.4,2.96204005]
[1751721907844,6.7362,148.42,148.4,2.96204005]
[1751721908346,6.7364,148.41,148.39,6.7373]
[1751721908645,6.7364,148.41,148.4,2.96204005]
[1751721908841,6.7364,148.41,148.38,6.7377]
[1751721909037,6.7364,148.41,148.4,2.96204005]
[1751721911650,6.7364,148.41,148.4,2.95651049]
[1751721913453,58.29066388,148.47,148.4,2.95651049]
[1751721913752,15.38482043,148.46,148.43,2.95651049]
[1751721913947,4.73833967,148.45,148.43,2.95539313]
[1751721914250,61.24605656,148.47,148.43,2.95539268]
[1751721914445,15.39812897,148.46,148.43,2.95539268]
[1751721914646,6.7358,148.43,148.4,6.7367]
[1751721914846,6.7358,148.43,148.42,2.95539268]
[1751721915643,6.7358,148.43,148.42,2.95527955]
[1751721916150,6.7353,148.44,148.42,2.95527955]
[1751721916349,6.7353,148.44,148.43,2.95527955]
[1751721918962,58.29066388,148.47,148.43,2.95527955]
[1751721919155,4.74215328,148.46,148.44,2.95527955]
[1751721919452,6.7344,148.46,148.45,2.95527955]
[1751721919756,4.75341866,148.46,148.44,2.95527955]
[1751721919953,58.29066388,148.47,148.44,2.95527955]
[1751721920149,6.7349,148.45,148.44,2.95527955]
[1751721921251,6.7351,148.44,148.43,2.95527955]
[1751721921962,6.7356,148.43,148.42,2.95527955]
[1751721922153,2.95527955,148.46,148.39,45.88]
[1751721922352,2.95666433,148.43,148.39,45.88]
[1751721922555,6.7367,148.41,148.39,48.8370011]
[1751721922956,6.7367,148.41,148.4,2.9570011]
[1751721932363,11.4996158,148.41,148.4,2.9570011]
[1751721933259,11.4996158,148.41,148.4,2.95627287]
[1751721934166,17.20529807,148.41,148.4,2.95627287]
[1751721934463,15.49497613,148.41,148.4,2.95627287]
[1751721934860,15.49497613,148.41,148.4,2.9561726]
[1751721935060,4.7629158,148.41,148.4,2.9561726]
[1751721935264,10.47022062,148.41,148.4,2.9561726]
[1751721935559,17.20662062,148.41,148.4,2.9561726]
[1751721936461,22.23383919,148.41,148.4,2.95623715]
[1751721937464,22.22617997,148.41,148.4,2.95623715]
[1751721946072,22.22617997,148.41,148.39,2.95623715]
[1751721946266,6.7364,148.41,148.39,2.95623715]
[1751721947071,4.74394765,148.4,148.39,2.95623715]
[1751721950378,4.74394765,148.4,148.39,9.69363715]
[1751721950574,4.74394765,148.4,148.39,9.69323425]
[1751721951367,4.74394765,148.4,148.38,52.6577]
[1751721951572,2.95653819,148.43,148.38,45.92]
[1751721951872,20.80871756,148.42,148.38,48.87653819]
[1751721952073,17.85217937,148.41,148.38,48.87653819]
[1751721952268,10.45603713,148.4,148.38,48.87742762]
[1751721952478,6.7374,148.39,148.38,48.87742762]
[1751721952678,17.1938169,148.39,148.38,48.87742762]
[1751721953076,6.7371,148.4,148.38,48.87742762]
[1751721953887,6.7371,148.4,148.39,2.95742762]
[1751721954083,22.20825481,148.4,148.39,2.95742762]
[1751721954384,17.18691085,148.4,148.39,2.95742762]
[1751721954885,5.70544516,148.4,148.39,2.95742762]
[1751721955381,6.7367,148.41,148.39,2.95742762]
[1751721955586,10.44880139,148.4,148.39,2.95742762]
[1751721956486,10.44880139,148.4,148.39,9.69482762]
[1751721956683,5.7048818,148.4,148.39,9.69482762]
[1751721956884,10.85839584,148.45,148.39,2.95742762]
[1751721957184,17.81885557,148.44,148.42,2.95742762]
[1751721957482,10.85839584,148.45,148.42,2.95742762]
[1751721957483,24.55465557,148.43,148.42,2.95742762]
[1751721960889,24.55465557,148.43,148.4,6.7367]
[1751721961090,6.7358,148.43,148.42,2.95742762]
[1751721961289,24.5657628,148.43,148.42,2.95742762]
[1751721962193,17.8299628,148.43,148.42,2.95742762]
[1751721963390,17.85043755,148.43,148.42,2.95742762]
[1751721963991,24.58593755,148.43,148.42,2.95742762]
[1751721965200,30.88263339,148.43,148.42,2.95742762]
[1751721969290,30.92357114,148.43,148.42,2.95742762]
[1751721971600,24.6268753,148.43,148.42,2.95742762]
[1751721971896,24.63526733,148.43,148.42,2.95742762]
[1751721972402,6.7361,148.42,148.41,2.95742762]
[1751721972696,22.25595333,148.42,148.41,2.95742762]
[1751721972890,24.63575884,148.42,148.41,2.95742762]
[1751721973897,17.89965884,148.42,148.41,2.95742762]
[1751721974600,10.4582801,148.42,148.41,2.95742762]
[1751721974798,5.70447708,148.42,148.41,2.95742762]
[1751721975292,10.45416282,148.42,148.41,2.95742762]
[1751721976102,10.45416282,148.42,148.41,9.69392762]
[1751721976801,4.74968574,148.42,148.41,9.69392762]
[1751721977498,4.74968574,148.42,148.41,6.7365]
[1751721977801,4.74968574,148.42,148.41,9.69392762]
[1751721978302,6.7356,148.43,148.41,9.69392762]
[1751721978603,6.7353,148.44,148.42,9.69332762]
[1751721978899,8.64179584,148.46,148.43,2.95742762]
[1751721979102,24.58286834,148.45,148.43,2.95742762]
[1751721979302,17.84786834,148.44,148.43,2.95742762]
[1751721979603,24.58296834,148.44,148.43,2.95742762]
[1751721981204,24.58244173,148.44,148.43,2.95742762]
[1751721982503,17.84734173,148.44,148.43,2.95742762]
[1751721983405,24.58244173,148.44,148.43,2.95742762]
[1751721983604,24.58244173,148.44,148.42,2.95742762]
[1751721983807,15.46970459,148.43,148.42,2.95742762]
[1751721984308,15.46970459,148.43,148.4,2.95742762]
[1751721984509,10.41389523,148.42,148.4,2.95742762]
[1751721984808,5.66698158,148.41,148.4,2.95742762]
[1751721986098,6.7362,148.42,148.4,9.69356502]
[1751721986411,6.7357,148.43,148.4,2.95666502]
[1751721986708,10.39958745,148.42,148.4,2.95666502]
[1751721986905,6.7357,148.43,148.4,2.95666502]
[1751721987106,10.39958743,148.42,148.4,2.95666502]
[1751721987301,6.7352,148.44,148.41,6.7364]
[1751721987507,15.45214612,148.43,148.42,2.95666502]
[1751721987806,9.78758895,148.43,148.42,2.95666502]
[1751721988106,9.78758895,148.43,148.42,9.69266502]
[1751721988301,4.73433007,148.43,148.42,9.69266502]
[1751721990514,12.15831477,148.43,148.42,9.69266502]
[1751721991008,12.15831477,148.43,148.42,9.69118504]
[1751721992416,6.2964132,148.5,148.42,591.45518504]
[1751721992616,6.2964132,148.51,148.43,243.6044]
[1751721992915,4.2396536,148.55,148.5,2.95518504]
[1751721993112,8.01572868,148.54,148.52,2.95518504]
[1751721993318,4.2396536,148.55,148.53,2.95518504]
[1751721993511,6.2964132,148.67,148.54,584.65518504]
[1751721993711,8.38020765,148.7,148.64,2.95518504]
[1751721993712,7.94911888,148.66,148.64,2.95518504]
[1751721993919,7.94911888,148.65,148.64,2.95518504]
[1751721994111,7.94911888,148.65,148.54,581.7]
[1751721994316,6.8876,148.7,148.58,2.95518504]
[1751721994317,2.95518504,148.63,148.58,2.95518504]
[1751721994516,2.95518504,148.62,148.57,2.95518504]
[1751721994717,2.95518504,148.62,148.55,194.7]
[1751721994718,2.95518504,148.59,148.55,194.7]
[1751721994910,7.92836437,148.61,148.53,2.95518504]
[1751721994911,2.95518504,148.57,148.53,2.95518504]
[1751721995113,2.36128011,148.6,148.52,2.95518504]
[1751721995311,2.95518504,148.57,148.52,2.95518504]
[1751721995511,2.3344,148.61,148.51,45.76]
[1751721995512,2.95518504,148.56,148.51,48.71518504]
[1751721995716,4.61235593,148.58,148.51,45.76]
[1751721995918,5.56359568,148.57,148.51,45.76]
[1751721996120,6.7313,148.53,148.5,194.98]
[1751721996514,6.7325,148.5,148.47,45.76]
[1751721997119,4.61235593,148.54,148.47,45.76]
[1751721997120,6.7329,148.49,148.47,45.76]
[1751721998121,6.7333,148.48,148.47,45.76]
[1751721998422,4.61235593,148.52,148.44,11.34735593]
[1751721999018,6.733,148.49,148.44,11.34735593]
[1751721999420,6.733,148.49,148.45,6.7346]
[1751722003523,6.7325,148.5,148.46,11.34655593]
[1751722004623,4.61235593,148.54,148.47,6.7337]
[1751722004624,6.732,148.51,148.47,6.7337]
[1751722005922,6.7324,148.5,148.47,6.7337]
[1751722010532,6.732,148.51,148.47,6.7337]
[1751722013934,6.732,148.51,148.48,6.7331]
[1751722017840,6.7324,148.5,148.48,6.7331]
[1751722020742,6.7324,148.5,148.47,6.7335]
[1751722026042,6.7324,148.5,148.47,11.34807622]
[1751722026641,6.7324,148.5,148.47,6.7335]
[1751722032539,2.3718,148.54,148.45,6.7343]
[1751722032755,4.61575485,148.52,148.45,6.7343]
[1751722033746,6.7334,148.48,148.44,4.61575485]
[1751722034049,6.7334,148.48,148.46,6.7341]
[1751722036854,2.3931,148.52,148.43,240.06]
[1751722037055,14.81121106,148.51,148.43,50.37565523]
[1751722037251,5.58690061,148.5,148.43,50.37565523]
[1751722037557,6.7341,148.47,148.43,50.37565523]
[1751722037856,6.7341,148.47,148.44,6.7347]
[1751722038560,6.7341,148.47,148.45,6.7346]
[1751722041370,6.7341,148.47,148.44,6.7349]
[1751722045061,6.7342,148.46,148.44,6.7349]
[1751722046965,6.734,148.47,148.44,6.7349]
[1751722050367,6.734,148.47,148.45,6.7346]
[1751722051468,2.2325,148.51,148.46,6.7342]
[1751722051668,12.56475977,148.5,148.46,6.7342]
[1751722051872,7.96745136,148.49,148.46,6.7342]
[1751722052069,6.7335,148.48,148.45,11.35015523]
[1751722054665,6.7335,148.48,148.45,11.3499228]
[1751722054863,6.7338,148.47,148.45,11.3499228]
[1751722055367,6.7338,148.47,148.45,4.6154228]
[1751722055572,6.7338,148.47,148.44,6.7349]
[1751722055773,6.7342,148.46,148.44,6.7349]
[1751722056565,6.7339,148.47,148.44,6.7349]
[1751722058571,6.7343,148.46,148.44,6.7349]
[1751722059473,6.7343,148.46,148.44,194.02]
[1751722060173,6.7343,148.46,148.43,52.4954]
[1751722060371,6.7343,148.46,148.43,251.1308228]
[1751722061767,13.144336,148.51,148.43,251.1308228]
[1751722061968,7.96857777,148.5,148.43,251.1308228]
[1751722062172,7.96857777,148.49,148.43,251.1308228]
[1751722062469,6.7345,148.46,148.43,251.1308228]
[1751722063071,6.7345,148.46,148.43,57.1108228]
[1751722063268,4.6154228,148.49,148.43,239.74]
[1751722063572,10.1626548,148.48,148.43,239.74]
[1751722063773,7.9651548,148.47,148.43,45.76]
[1751722063973,2.1975,148.48,148.43,45.76]
[1751722064174,7.95952516,148.47,148.43,45.76]
[1751722064374,2.1975,148.48,148.43,45.76]
[1751722064575,7.95900265,148.47,148.43,45.76]
[1751722064776,2.1975,148.48,148.43,45.76]
[1751722064976,6.7354,148.44,148.42,194.0]
[1751722065376,2.1975,148.48,148.39,627.66]
[1751722065681,6.7355,148.44,148.41,6.7364]
[1751722065880,4.6154228,148.47,148.4,198.5954228]
[1751722066182,7.95904561,148.46,148.4,198.5954228]
[1751722066479,6.7356,148.43,148.4,205.3320228]
[1751722066776,6.7356,148.43,148.4,11.3520228]
[1751722066983,6.7356,148.43,148.4,205.3520228]
[1751722068985,6.7356,148.43,148.4,11.3520228]
[1751722069182,6.7356,148.43,148.41,194.0]
[1751722071379,6.7361,148.42,148.4,4.6154228]
[1751722071684,6.7361,148.42,148.4,198.5754228]
[1751722072277,2.3784,148.46,148.41,193.96]
[1751722072576,5.55999754,148.45,148.41,193.96]
[1751722072883,6.7354,148.44,148.41,200.6962]
[1751722073675,6.7356,148.43,148.41,200.6962]
[1751722074180,6.7356,148.43,148.41,193.96]
[1751722074685,2.3784,148.46,148.41,193.96]
[1751722074883,5.55900669,148.45,148.41,193.96]
[1751722075084,2.3784,148.46,148.41,193.96]
[1751722075382,5.55900669,148.45,148.41,193.96]
[1751722075587,2.3784,148.46,148.41,193.96]
[1751722075886,6.7363,148.42,148.4,4.6154228]
[1751722076086,2.3784,148.46,148.4,198.7554228]
[1751722076386,7.93189216,148.45,148.4,198.7554228]
[1751722076587,6.7364,148.41,148.4,198.7554228]
[1751722076887,4.6154228,148.45,148.39,46.08]
[1751722077084,6.7373,148.4,148.38,4.6154228]
[1751722077285,4.6154228,148.45,148.38,198.7754228]
[1751722077485,7.93077337,148.44,148.38,198.7754228]
[1751722077789,7.93077337,148.43,148.38,198.7754228]
[1751722077987,4.6154228,148.45,148.38,198.7754228]
[1751722078188,6.7371,148.4,148.38,198.7754228]
[1751722078484,8.6748132,148.46,148.38,198.7754228]
[1751722078676,7.92661408,148.45,148.4,4.6154228]
[1751722078879,6.7358,148.43,148.4,11.3522228]
[1751722084687,6.7358,148.43,148.4,11.35513037]
[1751722089204,6.7361,148.42,148.4,4.61833037]
[1751722090499,6.7361,148.42,148.4,11.35513037]
[1751722091205,6.7364,148.41,148.39,6.7372]
[1751722097003,2.36953739,148.45,148.4,6.7367]
[1751722097205,5.57227474,148.44,148.4,6.7367]
[1751722097508,6.7358,148.43,148.4,6.7367]
[1751722098308,6.7358,148.43,148.41,6.7364]
[1751722098709,6.7358,148.43,148.38,198.77833037]
[1751722099008,6.7358,148.43,148.4,11.35503037]
[1751722099910,6.7358,148.43,148.4,6.7367]
[1751722100110,6.7358,148.43,148.41,2.95588593]
[1751722100804,6.736,148.42,148.41,2.95588593]
[1751722101212,6.736,148.42,148.4,6.7367]
[1751722101213,2.95588593,148.45,148.4,2.95588593]
[1751722101403,7.94677623,148.44,148.4,2.95588593]
[1751722101606,2.95588593,148.45,148.4,2.95588593]
[1751722101806,7.94677625,148.44,148.4,2.95642342]
[1751722102014,2.95642342,148.45,148.4,2.95642342]
[1751722102214,10.90319967,148.44,148.4,2.95642342]
[1751722102514,6.7366,148.41,148.4,2.95642342]
[1751722103012,6.7363,148.42,148.4,2.95642342]
[1751722104009,6.7366,148.41,148.39,6.7372]
[1751722104216,6.7366,148.41,148.4,2.95642342]
[1751722112122,6.7362,148.42,148.4,2.95642342]
[1751722113517,6.7362,148.42,148.39,6.7372]
[1751722113721,6.7362,148.42,148.4,2.95642342]
[1751722116527,6.7362,148.42,148.39,6.7372]
[1751722116722,6.7362,148.42,148.4,2.95642342]
[1751722121428,5.5963239,148.41,148.4,2.95642342]
[1751722124131,5.5963239,148.41,148.4,9.69322614]
[1751722124632,6.7358,148.43,148.4,9.69270429]
[1751722124831,6.7358,148.43,148.42,2.95580429]
[1751722125126,19.25109352,148.43,148.42,2.95580429]
[1751722125334,12.51529352,148.43,148.42,2.95580429]
[1751722125723,7.99776362,148.43,148.42,2.95580429]
[1751722127436,6.7349,148.45,148.42,9.69180429]
[1751722127737,5.61629863,148.44,148.43,6.7355]
[1751722128132,5.61629863,148.44,148.38,196.1826]
[1751722128431,6.7349,148.45,148.42,6.7358]
[1751722128631,5.60880378,148.44,148.42,6.7358]
[1751722128831,6.7349,148.45,148.43,2.95580429]
[1751722129135,6.7349,148.45,148.44,2.95580429]
[1751722129436,19.38879343,148.45,148.44,2.95580429]
[1751722129841,12.65389343,148.45,148.44,2.95580429]
[1751722131138,12.65389343,148.45,148.44,9.69090429]
[1751722131330,4.67208244,148.45,148.44,9.69090429]
[1751722132138,6.7336,148.48,148.44,9.69090429]
[1751722132337,12.64398419,148.47,148.46,2.95580429]
[1751722133030,12.64398419,148.47,148.44,6.7351]
[1751722133232,4.66824893,148.46,148.44,6.7351]
[1751722133435,6.7336,148.48,148.44,6.7351]
[1751722133634,12.65506813,148.47,148.45,6.7346]
[1751722133933,4.66614625,148.46,148.45,6.7346]
[1751722134131,6.7337,148.47,148.45,6.7346]
[1751722134330,6.7337,148.47,148.46,2.95580429]
[1751722134533,19.38546227,148.47,148.46,2.95580429]
[1751722134936,14.72060324,148.47,148.46,2.95580429]
[1751722135137,17.01603155,148.47,148.46,2.95580429]
[1751722137839,12.35117256,148.47,148.46,2.95580429]
[1751722138040,17.03362747,148.47,148.46,2.95580429]
[1751722139744,17.03362747,148.47,148.45,2.95580429]
[1751722139942,6.7337,148.47,148.45,2.95580429]
[1751722141742,6.7337,148.47,148.46,2.95580429]
[1751722141942,11.4140881,148.47,148.46,2.95580429]
[1751722142433,4.6803881,148.47,148.46,2.95580429]
[1751722146036,6.7335,148.48,148.46,2.95580429]
[1751722146246,6.7335,148.48,148.47,2.95580429]
[1751722146447,11.43181545,148.48,148.47,2.95580429]
[1751722150146,6.7335,148.48,148.47,2.95580429]
[1751722159261,5.35310429,148.5,148.46,2.95580429]
[1751722159466,4.74260018,148.49,148.46,2.95580429]
[1751722159664,5.35310429,148.5,148.46,2.95580429]
[1751722159865,6.7339,148.47,148.46,2.95580429]
[1751722162067,6.7335,148.48,148.46,2.95580429]
[1751722162362,6.7335,148.48,148.47,2.95580429]
[1751722165966,6.7338,148.47,148.44,6.7349]
[1751722166167,6.7338,148.47,148.46,2.95580429]
[1751722167563,4.73764067,148.47,148.44,2.95580429]
[1751722167769,2.95580429,148.48,148.42,52.5959]